fUSD/lending_fUSD_20260626
["ID","MTS","AMOUNT","RATE_DAILY","PERIOD"]
[426467201,1782424239000,-220.205878,0.00022543,14]
[426467216,1782424239000,-243.435,0.0002261,2]
[426467192,1782424239000,-561.15,0.00022466,2]
[426467248,1782424239000,-9843.67483982,0.00023003,2]
[426467194,1782424239000,-233.36793174,0.000225,2]
[426467191,1782424239000,-1195.05,0.00022466,2]
[426467195,1782424239000,-191.30353669,0.000225,2]
[426467193,1782424239000,-1346.58,0.00022466,2]
[426467197,1782424239000,-231.05083082,0.000225,2]
[426467196,1782424239000,-301.72887792,0.000225,2]
[426467200,1782424239000,-3818.71755417,0.00022534,2]
[426467198,1782424239000,-1141.1282051,0.000225,2]
[426467199,1782424239000,-197.3,0.00022534,2]
[426467202,1782424239000,-168.234652,0.00022543,14]
[426467204,1782424239000,-2010.64,0.00022562,2]
[426467205,1782424239000,-3562.0,0.0002261,2]
[426467208,1782424239000,-1361.0,0.0002261,2]
[426467207,1782424239000,-491.0,0.0002261,2]
[426467211,1782424239000,-278.0,0.0002261,2]
[426467206,1782424239000,-1234.844,0.0002261,2]
[426467213,1782424239000,-175.0,0.0002261,2]
[426467203,1782424239000,-265.713336,0.00022543,14]
[426467210,1782424239000,-200.0,0.0002261,2]
[426467209,1782424239000,-150.0,0.0002261,2]
[426467212,1782424239000,-935.0,0.0002261,2]
[426467214,1782424239000,-150.0,0.0002261,2]
[426467215,1782424239000,-150.0,0.0002261,2]
[426467217,1782424239000,-3649.0,0.0002261,2]
[426467245,1782424239000,-635.51157359,0.00023002,2]
[426467303,1782424239000,-1000.0,0.00024658,2]
[426467247,1782424239000,-500.0,0.00023002,2]
[426467279,1782424239000,-168.85718495,0.00023643,2]
[426467280,1782424239000,-157.01345415,0.00023643,2]
[426467284,1782424239000,-150.46078464,0.00023643,2]
[426467283,1782424239000,-190.71840287,0.00023643,2]
[426467281,1782424239000,-162.04607962,0.00023643,2]
[426467282,1782424239000,-158.93719383,0.00023643,2]
[426467286,1782424239000,-347.16475399,0.00023861,2]
[426467285,1782424239000,-172.05357506,0.00023643,2]
[426467288,1782424239000,-247.0,0.00024,2]
[426467287,1782424239000,-612.0,0.00024,2]
[426467289,1782424239000,-326.0,0.00024,2]
[426467291,1782424239000,-676.0,0.00024,2]
[426467292,1782424239000,-236.0,0.00024,2]
[426467295,1782424239000,-584.0,0.00024,2]
[426467290,1782424239000,-165.0,0.00024,2]
[426467296,1782424239000,-247.0,0.00024,2]
[426467293,1782424239000,-156.0,0.00024,2]
[426467297,1782424239000,-157.97,0.00024065,2]
[426467298,1782424239000,-8152.50279652,0.00024317,2]
[426467301,1782424239000,-160.02799572,0.00024657,2]
[426467300,1782424239000,-2179.41676624,0.00024469,2]
[426467299,1782424239000,-3818.71755417,0.00024376,2]
[426467302,1782424239000,-755.47,0.00024658,2]
[426467304,1782424239000,-500.0,0.00024767,2]
[426467244,1782424239000,-500.0,0.00023002,2]
[426467278,1782424239000,-153.26934179,0.00023643,2]
[426467277,1782424239000,-151.91817937,0.00023643,2]
[426467294,1782424239000,-460.0,0.00024,2]
[426467276,1782424239000,-157.46039437,0.00023643,2]
[426467275,1782424239000,-200.18467315,0.0002364,2]
[426467249,1782424239000,-5000.0,0.00023003,2]
[426467251,1782424239000,-5000.0,0.00023003,2]
[426467260,1782424239000,-172.87045873,0.00023637,2]
[426467252,1782424239000,-487.93,0.00023159,7]
[426467253,1782424239000,-152.67585699,0.00023637,2]
[426467254,1782424239000,-150.00345718,0.00023637,2]
[426467256,1782424239000,-169.50781194,0.00023637,2]
[426467259,1782424239000,-201.51981331,0.00023637,2]
[426467255,1782424239000,-173.93854472,0.00023637,2]
[426467257,1782424239000,-152.6866486,0.00023637,2]
[426467258,1782424239000,-177.63908135,0.00023637,2]
[426467261,1782424239000,-178.26332024,0.00023637,2]
[426467250,1782424239000,-5000.0,0.00023003,2]
[426467273,1782424239000,-182.27467723,0.0002364,2]
[426467262,1782424239000,-165.97569701,0.0002364,2]
[426467274,1782424239000,-165.03905656,0.0002364,2]
[426467268,1782424239000,-280.13355962,0.0002364,2]
[426467269,1782424239000,-170.00907669,0.0002364,2]
[426467272,1782424239000,-191.88081199,0.0002364,2]
[426467271,1782424239000,-314.02502115,0.0002364,2]
[426467264,1782424239000,-157.50040291,0.0002364,2]
[426467266,1782424239000,-157.85801191,0.0002364,2]
[426467267,1782424239000,-155.89447369,0.0002364,2]
[426467265,1782424239000,-256.13820767,0.0002364,2]
[426467263,1782424239000,-217.1219251,0.0002364,2]
[426467270,1782424239000,-225.55107829,0.0002364,2]
[426467342,1782424240000,-622.0,0.00025,2]
[426467348,1782424240000,-1000.0,0.00025,2]
[426467351,1782424240000,-253.62790106,0.00025,2]
[426467345,1782424240000,-169.0,0.00025,2]
[426467344,1782424240000,-330.0,0.00025,2]
[426467340,1782424240000,-344.10715012,0.00024901,2]
[426467339,1782424240000,-300.92156929,0.00024901,2]
[426467335,1782424240000,-314.0269083,0.00024901,2]
[426467337,1782424240000,-317.87438767,0.00024901,2]
[426467332,1782424240000,-314.92078874,0.00024901,2]
[426467349,1782424240000,-475.0,0.00025,2]
[426467341,1782424240000,-208.63313888,0.00024904,2]
[426467343,1782424240000,-263.0,0.00025,2]
[426467355,1782424240000,-1473.30168622,0.00025035,2]
[426467346,1782424240000,-694.0,0.00025,2]
[426467350,1782424240000,-587.0,0.00025,2]
[426467352,1782424240000,-500.0,0.00025035,2]
[426467353,1782424240000,-638.02606102,0.00025035,2]
[426467354,1782424240000,-1500.0,0.00025035,2]
[426467356,1782424240000,-638.02606102,0.00025309,2]
[426467358,1782424240000,-518.5,0.00025583,2]
[426467359,1782424240000,-638.02606102,0.00025583,2]
[426467361,1782424240000,-3562.0,0.0002561,2]
[426467363,1782424240000,-383.0,0.0002561,2]
[426467360,1782424240000,-500.0,0.00025589,2]
[426467362,1782424240000,-1230.0,0.0002561,2]
[426467347,1782424240000,-247.0,0.00025,2]
[426467338,1782424240000,-381.43680573,0.00024901,2]
[426467306,1782424240000,-300.00691436,0.00024894,2]
[426467336,1782424240000,-324.09215923,0.00024901,2]
[426467357,1782424240000,-347.16475399,0.00025367,2]
[426467316,1782424240000,-315.00080582,0.00024898,2]
[426467315,1782424240000,-331.95139401,0.00024898,2]
[426467308,1782424240000,-339.01562387,0.00024894,2]
[426467305,1782424240000,-305.35171397,0.00024894,2]
[426467307,1782424240000,-347.87708943,0.00024894,2]
[426467314,1782424240000,-356.52664049,0.00024894,2]
[426467310,1782424240000,-355.2781627,0.00024894,2]
[426467309,1782424240000,-305.3732972,0.00024894,2]
[426467311,1782424240000,-403.03962661,0.00024894,2]
[426467313,1782424240000,-345.74091746,0.00024894,2]
[426467317,1782424240000,-434.2438502,0.00024898,2]
[426467320,1782424240000,-311.78894738,0.00024898,2]
[426467319,1782424240000,-315.71602381,0.00024898,2]
[426467318,1782424240000,-512.27641534,0.00024898,2]
[426467324,1782424240000,-628.0500423,0.00024898,2]
[426467328,1782424240000,-229.36482636,0.00024898,2]
[426467322,1782424240000,-340.01815337,0.00024898,2]
[426467323,1782424240000,-451.10215659,0.00024898,2]
[426467321,1782424240000,-560.26711924,0.00024898,2]
[426467325,1782424240000,-383.76162398,0.00024898,2]
[426467327,1782424240000,-364.54935446,0.00024898,2]
[426467326,1782424240000,-243.87991588,0.00024898,2]
[426467329,1782424240000,-330.07811311,0.00024898,2]
[426467330,1782424240000,-240.48004253,0.00024898,2]
[426467334,1782424240000,-337.71436989,0.00024901,2]
[426467333,1782424240000,-306.53868357,0.00024901,2]
[426467331,1782424240000,-400.3693463,0.00024898,2]
[426467364,1782424240000,-1361.0,0.0002561,2]
[426467365,1782424240000,-150.0,0.0002561,2]
[426467367,1782424240000,-935.0,0.0002561,2]
[426467401,1782424240000,-197.26449725,0.00025736,2]
[426467398,1782424240000,-200.68787274,0.00025736,2]
[426467400,1782424240000,-467.68342108,0.00025736,2]
[426467402,1782424240000,-239.39168449,0.00025736,2]
[426467399,1782424240000,-206.7260795,0.00025736,2]
[426467403,1782424240000,-840.40067886,0.00025736,2]
[426467404,1782424240000,-510.02723006,0.00025736,2]
[426467407,1782424240000,-203.07370782,0.00025736,2]
[426467409,1782424240000,-487.75983176,0.00025736,2]
[426467406,1782424240000,-942.07506344,0.00025736,2]
[426467410,1782424240000,-546.82403169,0.00025736,2]
[426467412,1782424240000,-182.36092906,0.00025736,2]
[426467408,1782424240000,-575.64243596,0.00025736,2]
[426467411,1782424240000,-162.8137474,0.00025736,2]
[426467414,1782424240000,-495.11716967,0.00025736,2]
[426467413,1782424240000,-209.99992073,0.00025736,2]
[426467405,1782424240000,-676.65323488,0.00025736,2]
[426467415,1782424240000,-480.96008505,0.00025736,2]
[426467417,1782424240000,-233.68651285,0.00025736,2]
[426467428,1782424240000,-459.80802536,0.00025739,2]
[426467430,1782424240000,-219.42425046,0.00025739,2]
[426467416,1782424240000,-205.90000372,0.00025736,2]
[426467432,1782424240000,-506.57155484,0.00025739,2]
[426467423,1782424240000,-228.92472085,0.00025739,2]
[426467425,1782424240000,-245.45203645,0.00025739,2]
[426467418,1782424240000,-600.55401945,0.00025736,2]
[426467421,1782424240000,-472.3811831,0.00025739,2]
[426467395,1782424240000,-185.25841479,0.00025736,2]
[426467396,1782424240000,-768.41462301,0.00025736,2]
[426467419,1782424240000,-243.97885196,0.00025739,2]
[426467393,1782424240000,-245.99710636,0.00025736,2]
[426467397,1782424240000,-473.57403572,0.00025736,2]
[426467366,1782424240000,-150.0,0.0002561,2]
[426467371,1782424240000,-458.02757096,0.00025732,2]
[426467369,1782424240000,-3649.0,0.0002561,2]
[426467377,1782424240000,-532.91724405,0.00025732,2]
[426467374,1782424240000,-521.81563415,0.00025732,2]
[426467370,1782424240000,-150.0,0.0002561,2]
[426467375,1782424240000,-508.52343581,0.00025732,2]
[426467372,1782424240000,-204.31903166,0.00025732,2]
[426467376,1782424240000,-458.05994581,0.00025732,2]
[426467373,1782424240000,-450.01037154,0.00025732,2]
[426467378,1782424240000,-224.92096243,0.00025732,2]
[426467379,1782424240000,-604.55943992,0.00025732,2]
[426467368,1782424240000,-150.0,0.0002561,2]
[426467382,1782424240000,-534.78996073,0.00025732,2]
[426467391,1782424240000,-203.2992283,0.00025736,2]
[426467392,1782424240000,-155.76491572,0.00025736,2]
[426467394,1782424240000,-215.08436668,0.00025736,2]
[426467390,1782424240000,-247.39069773,0.00025736,2]
[426467381,1782424240000,-518.61137619,0.00025732,2]
[426467388,1782424240000,-651.3657753,0.00025736,2]
[426467389,1782424240000,-472.50120873,0.00025736,2]
[426467383,1782424240000,-237.39399729,0.00025732,2]
[426467384,1782424240000,-242.39797539,0.00025732,2]
[426467385,1782424240000,-317.71530352,0.00025736,2]
[426467387,1782424240000,-497.92709102,0.00025736,2]
[426467380,1782424240000,-220.82223993,0.00025732,2]
[426467386,1782424240000,-221.99996819,0.00025736,2]
[426467491,1782424241000,-476.57295528,0.00026295,2]
[426467493,1782424241000,-663.90278803,0.00026295,2]
[426467488,1782424241000,-157.31506445,0.00026295,2]
[426467487,1782424241000,-458.72965273,0.00026295,2]
[426467476,1782424241000,-229.90086396,0.00026291,2]
[426467482,1782424241000,-474.78799457,0.00026291,2]
[426467479,1782424241000,-806.07925322,0.00026291,2]
[426467481,1782424241000,-392.47097785,0.00026291,2]
[426467480,1782424241000,-713.05328097,0.00026291,2]
[426467477,1782424241000,-449.84192485,0.00026291,2]
[426467484,1782424241000,-404.22666804,0.00026291,2]
[426467489,1782424241000,-382.84692595,0.00026295,2]
[426467495,1782424241000,-157.81993866,0.00026295,2]
[426467490,1782424241000,-429.90475419,0.00026295,2]
[426467483,1782424241000,-193.54528885,0.00026291,2]
[426467485,1782424241000,-484.79595078,0.00026291,2]
[426467492,1782424241000,-443.99993638,0.00026295,2]
[426467494,1782424241000,-183.39144829,0.00026295,2]
[426467505,1782424241000,-234.16705774,0.00026295,2]
[426467497,1782424241000,-630.00161164,0.00026295,2]
[426467496,1782424241000,-350.18248441,0.00026295,2]
[426467503,1782424241000,-430.16873336,0.00026295,2]
[426467498,1782424241000,-868.48770041,0.00026295,2]
[426467478,1782424241000,-691.48183492,0.00026291,2]
[426467501,1782424241000,-311.52983143,0.00026295,2]
[426467486,1782424241000,-408.05532179,0.00026295,2]
[426467474,1782424241000,-419.99984147,0.00026291,2]
[426467459,1782424241000,-638.02606102,0.00026131,2]
[426467475,1782424241000,-710.5563254,0.00026291,2]
[426467499,1782424241000,-282.13967237,0.00026295,2]
[426467436,1782424241000,-486.13823885,0.00025739,2]
[426467445,1782424241000,-451.38235393,0.00025739,2]
[426467438,1782424241000,-476.8115815,0.00025739,2]
[426467440,1782424241000,-572.1552086,0.00025739,2]
[426467442,1782424241000,-204.00418421,0.00025739,2]
[426467447,1782424241000,-516.16072519,0.00025739,2]
[426467456,1782424241000,-150.0,0.0002608,5]
[426467452,1782424241000,-638.02606102,0.00025857,2]
[426467450,1782424241000,-346.87,0.00025786,2]
[426467448,1782424241000,-23666.32,0.00025786,2]
[426467454,1782424241000,-6477.91969913,0.00026,2]
[426467458,1782424241000,-537.6845,0.00026131,2]
[426467460,1782424241000,-213.629073,0.00026133,2]
[426467469,1782424241000,-600.01382872,0.00026291,2]
[426467465,1782424241000,-6477.91969913,0.00026222,2]
[426467470,1782424241000,-695.75417887,0.00026291,2]
[426467467,1782424241000,-200.13721741,0.00026291,2]
[426467463,1782424241000,-2179.41676624,0.00026213,2]
[426467464,1782424241000,-3818.71755417,0.00026217,2]
[426467462,1782424241000,-8152.50279652,0.00026178,2]
[426467466,1782424241000,-610.70342794,0.00026291,2]
[426467468,1782424241000,-160.30085569,0.00026291,2]
[426467472,1782424241000,-610.74659441,0.00026291,2]
[426467473,1782424241000,-443.49372262,0.00026291,2]
[426467471,1782424241000,-678.03124775,0.00026291,2]
[426467500,1782424241000,-494.78139545,0.00026295,2]
[426467434,1782424241000,-471.04036245,0.00025739,2]
[426467504,1782424241000,-386.57456617,0.00026295,2]
[426467539,1782424241000,-429.76400259,0.00026295,2]
[426467538,1782424241000,-325.62749479,0.00026295,2]
[426467535,1782424241000,-427.69505154,0.00026295,2]
[426467537,1782424241000,-304.29606457,0.00026295,2]
[426467536,1782424241000,-688.09447909,0.00026295,2]
[426467541,1782424241000,-660.15622622,0.00026295,2]
[426467544,1782424241000,-419.13387339,0.00026295,2]
[426467543,1782424241000,-411.80000744,0.00026295,2]
[426467550,1782424241000,-629.84157747,0.00026298,2]
[426467552,1782424241000,-607.67271748,0.00026298,2]
[426467542,1782424241000,-721.44012758,0.00026295,2]
[426467548,1782424241000,-212.33070292,0.00026298,2]
[426467534,1782424241000,-729.09870892,0.00026295,2]
[426467547,1782424241000,-436.33831095,0.00026298,2]
[426467546,1782424241000,-406.65205699,0.00026295,2]
[426467549,1782424241000,-487.95770393,0.00026298,2]
[426467551,1782424241000,-457.8494417,0.00026298,2]
[426467554,1782424241000,-613.07736715,0.00026298,2]
[426467553,1782424241000,-490.90407291,0.00026298,2]
[426467556,1782424241000,-675.42873979,0.00026298,2]
[426467555,1782424241000,-438.84850092,0.00026298,2]
[426467560,1782424241000,-762.87361146,0.00026298,2]
[426467561,1782424241000,-601.84313858,0.00026298,2]
[426467558,1782424241000,-648.18431847,0.00026298,2]
[426467557,1782424241000,-628.0538166,0.00026298,2]
[426467559,1782424241000,-635.74877533,0.00026298,2]
[426467545,1782424241000,-800.7386926,0.00026295,2]
[426467532,1782424241000,-731.63974764,0.00026295,2]
[426467502,1782424241000,-491.99421271,0.00026295,2]
[426467533,1782424241000,-767.52324795,0.00026295,2]
[426467531,1782424241000,-406.14741563,0.00026295,2]
[426467508,1782424241000,-1024.55283067,0.00026295,2]
[426467512,1782424241000,-413.45215901,0.00026295,2]
[426467507,1782424241000,-185.5123728,0.00026295,2]
[426467514,1782424241000,-165.78920298,0.00026295,2]
[426467506,1782424241000,-370.51682958,0.00026295,2]
[426467513,1782424241000,-623.57789477,0.00026295,2]
[426467511,1782424241000,-159.76145998,0.00026295,2]
[426467510,1782424241000,-631.43204763,0.00026295,2]
[426467516,1782424241000,-478.78336899,0.00026295,2]
[426467515,1782424241000,-394.52899451,0.00026295,2]
[426467517,1782424241000,-427.69382323,0.00026295,2]
[426467519,1782424241000,-419.72336408,0.00026295,2]
[426467509,1782424241000,-401.37574548,0.00026295,2]
[426467524,1782424241000,-352.23777355,0.00026295,2]
[426467518,1782424241000,-312.02464361,0.00026295,2]
[426467540,1782424241000,-364.72185813,0.00026295,2]
[426467530,1782424241000,-371.92863525,0.00026295,2]
[426467526,1782424241000,-902.20431318,0.00026295,2]
[426467527,1782424241000,-184.1702866,0.00026295,2]
[426467522,1782424241000,-1120.53423848,0.00026295,2]
[426467520,1782424241000,-301.14518982,0.00026295,2]
[426467529,1782424241000,-1256.10008459,0.00026295,2]
[426467528,1782424241000,-160.52614116,0.00026295,2]
[426467523,1782424241000,-680.03630675,0.00026295,2]
[426467525,1782424241000,-222.47990996,0.00026295,2]
[426467521,1782424241000,-395.9835908,0.00026295,2]
[426467600,1782424242000,-638.02606102,0.00027227,2]
[426467599,1782424242000,-578.20924308,0.00027227,2]
[426467610,1782424242000,-195.33695911,0.00027397,2]
[426467597,1782424242000,-6477.91969913,0.00027111,2]
[426467596,1782424242000,-638.02606102,0.00026953,2]
[426467595,1782424242000,-6477.91969913,0.00026889,2]
[426467598,1782424242000,-180.0,0.00027123,5]
[426467591,1782424242000,-794.68596917,0.00026857,2]
[426467594,1782424242000,-347.16475399,0.00026874,2]
[426467602,1782424242000,-25000.0,0.00027365,3]
[426467593,1782424242000,-752.30392322,0.00026857,2]
[426467603,1782424242000,-25000.0,0.00027365,3]
[426467620,1782424242000,-11421.68,0.00027397,10]
[426467605,1782424242000,-25000.0,0.00027365,3]
[426467606,1782424242000,-7360.63681232,0.00027365,3]
[426467604,1782424242000,-25000.0,0.00027365,3]
[426467609,1782424242000,-500.0,0.00027397,2]
[426467608,1782424242000,-200.40580983,0.00027397,2]
[426467607,1782424242000,-8394.77117035,0.00027365,3]
[426467611,1782424242000,-1500.0,0.00027397,2]
[426467612,1782424242000,-151.49213433,0.00027397,10]
[426467613,1782424242000,-755.47,0.00027397,2]
[426467615,1782424242000,-3096.22,0.00027397,2]
[426467614,1782424242000,-530.57,0.00027397,2]
[426467592,1782424242000,-953.59201433,0.00026857,2]
[426467601,1782424242000,-6477.91969913,0.00027333,2]
[426467588,1782424242000,-759.59089684,0.00026857,2]
[426467576,1782424242000,-764.86496317,0.0002685,2]
[426467589,1782424242000,-766.34670893,0.00026857,2]
[426467616,1782424242000,-300.0,0.00027397,2]
[426467563,1782424242000,-638.02606102,0.00026405,2]
[426467562,1782424242000,-688.21430025,0.00026298,2]
[426467564,1782424242000,-6477.91969913,0.00026444,2]
[426467566,1782424242000,-6477.91969913,0.00026667,2]
[426467569,1782424242000,-214.5,0.000268,2]
[426467568,1782424242000,-638.02606102,0.00026679,2]
[426467567,1782424242000,-557.5788265,0.00026679,2]
[426467565,1782424242000,-1000.0,0.000265,2]
[426467570,1782424242000,-763.37928493,0.0002685,2]
[426467573,1782424242000,-888.19540675,0.0002685,2]
[426467571,1782424242000,-869.69272358,0.0002685,2]
[426467590,1782424242000,-810.23039809,0.00026857,2]
[426467572,1782424242000,-847.53905969,0.0002685,2]
[426467586,1782424242000,-825.19528278,0.00026853,2]
[426467575,1782424242000,-1007.59906653,0.0002685,2]
[426467582,1782424242000,-1127.75539147,0.00026853,2]
[426467585,1782424242000,-911.37338615,0.00026853,2]
[426467577,1782424242000,-787.50201456,0.00026853,2]
[426467578,1782424242000,-1280.69103834,0.00026853,2]
[426467583,1782424242000,-1570.12510574,0.00026853,2]
[426467580,1782424242000,-1400.6677981,0.00026853,2]
[426467579,1782424242000,-779.47236846,0.00026853,2]
[426467581,1782424242000,-850.04538343,0.00026853,2]
[426467584,1782424242000,-959.40405994,0.00026853,2]
[426467587,1782424242000,-1000.92336575,0.00026853,2]
[426467574,1782424242000,-864.35229365,0.0002685,2]
[426467619,1782424242000,-13706.01,0.00027397,10]
[426467621,1782424242000,-9518.06,0.00027397,10]
[426467618,1782424242000,-16447.22,0.00027397,10]
[426467653,1782424242000,-945.00241747,0.00027692,2]
[426467651,1782424242000,-1017.04687162,0.00027688,2]
[426467654,1782424242000,-1536.82924601,0.00027692,2]
[426467652,1782424242000,-917.8379558,0.00027688,2]
[426467650,1782424242000,-916.05514191,0.00027688,2]
[426467656,1782424242000,-1680.80135772,0.00027692,2]
[426467657,1782424242000,-1020.05446012,0.00027692,2]
[426467659,1782424242000,-1884.15012689,0.00027692,2]
[426467662,1782424242000,-919.61605072,0.00027695,2]
[426467667,1782424242000,-215.90989876,0.00027775,2]
[426467660,1782424242000,-990.23433933,0.00027692,2]
[426467666,1782424242000,-180.0,0.00027724,2]
[426467663,1782424242000,-953.623163,0.00027695,2]
[426467658,1782424242000,-1353.30646977,0.00027692,2]
[426467668,1782424242000,-638.02606102,0.00027775,2]
[426467665,1782424242000,-902.76470787,0.00027695,2]
[426467670,1782424242000,-2333.0,0.00027792,3]
[426467671,1782424242000,-1000.0,0.000278,2]
[426467672,1782424242000,-200.40580983,0.00027819,2]
[426467669,1782424242000,-6477.91969913,0.00027778,2]
[426467673,1782424242000,-151.49213422,0.0002786,21]
[426467674,1782424242000,-166.0,0.000279,3]
[426467675,1782424242000,-1400.0,0.000279,10]
[426467677,1782424242000,-2179.41676624,0.00027956,2]
[426467676,1782424242000,-935.14928584,0.00027956,2]
[426467655,1782424242000,-935.36684215,0.00027692,2]
[426467648,1782424242000,-200.40580983,0.00027608,2]
[426467661,1782424242000,-911.50907621,0.00027695,2]
[426467647,1782424242000,-6477.91969913,0.00027556,2]
[426467617,1782424242000,-1475.4,0.00027397,2]
[426467649,1782424242000,-151.49213422,0.00027634,18]
[426467623,1782424242000,-374.05971434,0.00027397,2]
[426467622,1782424242000,-355.3457445,0.00027397,2]
[426467628,1782424242000,-419.53244926,0.00027397,2]
[426467625,1782424242000,-561.0895715,0.00027397,2]
[426467626,1782424242000,-748.11942867,0.00027397,2]
[426467633,1782424242000,-1000.0,0.000274,2]
[426467627,1782424242000,-209.76622463,0.00027397,2]
[426467630,1782424242000,-1383.89,0.000274,7]
[426467629,1782424242000,-609.51,0.000274,7]
[426467631,1782424242000,-1000.0,0.000274,2]
[426467632,1782424242000,-1000.0,0.000274,2]
[426467624,1782424242000,-187.02985717,0.00027397,2]
[426467634,1782424242000,-1000.0,0.000274,2]
[426467646,1782424242000,-1759.026555,0.0002755,2]
[426467635,1782424242000,-1000.0,0.000274,2]
[426467645,1782424242000,-160.0,0.0002752,3]
[426467643,1782424242000,-638.02606102,0.00027501,2]
[426467640,1782424242000,-151.49213422,0.00027427,14]
[426467639,1782424242000,-151.49213422,0.00027401,12]
[426467644,1782424242000,-151.13177012,0.00027519,20]
[426467637,1782424242000,-216.45114417,0.000274,3]
[426467641,1782424242000,-151.49213422,0.00027497,16]
[426467638,1782424242000,-216.45114417,0.000274,10]
[426467636,1782424242000,-1881.81,0.000274,2]
[426467642,1782424242000,-500.0,0.000275,7]
[426467721,1782424243000,-500.0,0.00028493,2]
[426467724,1782424243000,-500.0,0.00028493,2]
[426467720,1782424243000,-500.0,0.00028493,2]
[426467718,1782424243000,-500.0,0.00028493,2]
[426467719,1782424243000,-500.0,0.00028493,2]
[426467717,1782424243000,-500.0,0.00028493,2]
[426467713,1782424243000,-240.0,0.00028427,5]
[426467712,1782424243000,-342.96427765,0.00028393,2]
[426467714,1782424243000,-190.5,0.00028428,7]
[426467725,1782424243000,-150.0,0.00028493,2]
[426467715,1782424243000,-160.0,0.00028432,3]
[426467723,1782424243000,-150.0,0.00028493,2]
[426467736,1782424243000,-446.0,0.00028493,2]
[426467730,1782424243000,-500.0,0.00028493,2]
[426467722,1782424243000,-619.84660301,0.00028493,2]
[426467726,1782424243000,-500.0,0.00028493,2]
[426467727,1782424243000,-173.74778307,0.00028493,2]
[426467728,1782424243000,-500.0,0.00028493,2]
[426467732,1782424243000,-152.19371287,0.00028493,2]
[426467731,1782424243000,-644.59969864,0.00028493,2]
[426467742,1782424243000,-958.0,0.00028493,2]
[426467733,1782424243000,-500.0,0.00028493,2]
[426467743,1782424243000,-500.0,0.00028493,2]
[426467734,1782424243000,-515.0179115,0.00028493,2]
[426467716,1782424243000,-200.40580983,0.00028451,2]
[426467729,1782424243000,-500.0,0.00028493,2]
[426467711,1782424243000,-500.0,0.00028393,16]
[426467681,1782424243000,-500.0,0.00028,7]
[426467710,1782424243000,-347.16475399,0.0002838,2]
[426467735,1782424243000,-500.0,0.00028493,2]
[426467679,1782424243000,-500.0,0.00028,7]
[426467678,1782424243000,-500.0,0.00028,7]
[426467683,1782424243000,-500.0,0.00028,7]
[426467687,1782424243000,-155.07,0.00028,7]
[426467695,1782424243000,-1383.89,0.000281,7]
[426467691,1782424243000,-200.40580983,0.0002803,2]
[426467692,1782424243000,-8152.50279652,0.00028039,2]
[426467689,1782424243000,-6477.91969913,0.00028,2]
[426467685,1782424243000,-500.0,0.00028,7]
[426467693,1782424243000,-638.02606102,0.00028049,2]
[426467690,1782424243000,-316.0,0.00028,2]
[426467709,1782424243000,-638.02606102,0.00028323,2]
[426467697,1782424243000,-2333.0,0.00028112,3]
[426467696,1782424243000,-191.53036183,0.00028111,5]
[426467698,1782424243000,-2582.13076917,0.0002813,2]
[426467700,1782424243000,-2445.0,0.00028167,5]
[426467699,1782424243000,-1496.0,0.00028167,5]
[426467701,1782424243000,-151.0,0.00028175,3]
[426467704,1782424243000,-151.0,0.00028175,3]
[426467705,1782424243000,-151.0,0.00028175,3]
[426467707,1782424243000,-200.0,0.00028212,2]
[426467702,1782424243000,-151.0,0.00028175,3]
[426467703,1782424243000,-151.0,0.00028175,3]
[426467706,1782424243000,-151.49213422,0.00028197,23]
[426467708,1782424243000,-200.40580983,0.0002824,2]
[426467694,1782424243000,-3818.71755417,0.00028059,2]
[426467737,1782424243000,-500.0,0.00028493,2]
[426467796,1782424243000,-958.0,0.00028493,2]
[426467741,1782424243000,-500.0,0.00028493,2]
[426467772,1782424243000,-500.0,0.00028493,2]
[426467773,1782424243000,-958.0,0.00028493,2]
[426467770,1782424243000,-446.0,0.00028493,2]
[426467774,1782424243000,-500.0,0.00028493,2]